bitfinex/quotes_ETHUSD_20260213
["timestamp","ask_amount","ask_price","bid_price","bid_amount"]
[1770995729754,4.27515,2026.3,2024.8,1.99074583]
[1770995729955,1.23389763,2026.1,2024.8,0.981]
[1770995730160,21.597586,2026.0,2024.8,0.981]
[1770995730385,22.555115,2025.8,2024.8,0.981]
[1770995730583,22.555115,2025.8,2024.6,1.23480941]
[1770995730584,19.523822,2025.8,2024.6,1.23480941]
[1770995730788,19.523822,2025.8,2024.5,4.93947521]
[1770995730789,18.357336,2025.8,2024.5,2.21583146]
[1770995730974,16.457673,2025.8,2024.5,0.981]
[1770995731181,1.23389763,2026.1,2024.5,0.981]
[1770995731182,1.23389763,2026.1,2024.6,1.80315456]
[1770995731376,1.23371496,2026.4,2024.8,1.80315456]
[1770995731567,1.23353234,2026.7,2025.0,1.80315456]
[1770995731767,1.23547511,2026.8,2025.3,15.567342]
[1770995732101,0.002,2026.8,2025.6,1.80315456]
[1770995732402,0.002,2026.8,2025.8,1.80315456]
[1770995732620,0.002,2026.8,2026.0,1.80315456]
[1770995732963,0.002,2026.8,2026.1,0.981]
[1770995733165,0.002,2026.8,2025.5,3.0374177]
[1770995733367,0.002,2026.8,2025.9,0.89]
[1770995733608,0.002,2026.8,2025.9,2.69315456]
[1770995733903,0.002,2026.8,2025.9,0.89]
[1770995734400,3.238576,2026.7,2025.7,0.981]
[1770995734612,0.002,2026.8,2025.7,0.981]
[1770995734904,0.002,2026.8,2025.7,2.78415456]
[1770995735281,5.910715,2026.7,2025.8,0.98]
[1770995735479,0.002,2026.8,2025.8,0.98]
[1770995735814,0.002,2026.8,2025.9,1.80315456]
[1770995736129,0.002,2026.8,2026.1,1.80315456]
[1770995736978,0.002,2027.0,2026.1,1.80315456]
[1770995737414,0.002,2027.0,2026.0,0.889]
[1770995737700,0.002,2027.0,2025.9,1.23401793]
[1770995737880,21.675325,2026.9,2025.3,3.08259076]
[1770995738079,14.718906,2026.7,2025.4,2.2142793]
[1770995738270,5.815007,2026.7,2025.4,2.21431617]
[1770995738670,5.293237,2026.7,2025.4,2.82820574]
[1770995738999,3.46485,2026.7,2025.4,4.06252814]
[1770995739200,3.657699,2026.7,2025.4,1.84820574]
[1770995739408,3.657699,2026.7,2025.5,0.98]
[1770995739568,2.642482,2026.7,2025.2,1.23441738]
[1770995739775,2.642482,2026.7,2025.3,3.71720574]
[1770995739977,1.23347148,2026.8,2025.4,1.84820574]
[1770995740178,4.956808,2026.9,2025.6,1.84820574]
[1770995740491,0.002,2027.0,2025.6,1.84820574]
[1770995740799,0.002,2027.0,2025.8,1.84820574]
[1770995740986,0.002,2027.0,2025.7,1.65987864]
[1770995740987,0.002,2027.0,2026.1,11.966233]
[1770995741191,0.002,2027.0,2026.3,1.84820574]
[1770995741821,0.002,2027.0,2026.4,3.71720574]
[1770995741980,0.002,2027.0,2026.5,1.84820574]
[1770995742185,1.2348024,2027.9,2026.7,1.84820574]
[1770995743782,1.232377,2028.6,2026.7,1.84820574]
[1770995744184,4.3566,2028.5,2027.0,1.84820574]
[1770995744539,4.3566,2028.5,2026.9,1.23341062]
[1770995744540,4.3566,2028.5,2027.2,1.84820574]
[1770995744829,1.232377,2028.6,2027.2,1.84820574]
[1770995745606,1.232377,2028.6,2027.4,1.84820574]
[1770995746013,11.366446,2028.5,2026.4,3.08188551]
[1770995746338,25.238746,2028.2,2026.5,2.82820574]
[1770995746635,3.458514,2028.2,2026.6,1.84820574]
[1770995747003,1.23255928,2028.3,2026.6,1.84820574]
[1770995747336,1.23213405,2029.0,2027.0,1.84820574]
[1770995747622,2.249809,2028.9,2027.2,1.84820574]
[1770995747829,1.23213405,2029.0,2027.5,1.84820574]
[1770995748037,1.23213405,2029.0,2027.7,1.84820574]
[1770995748191,5.698607,2029.6,2027.9,1.84820574]
[1770995748391,0.002,2028.2,2027.9,1.84520574]
[1770995748699,15.870674,2029.6,2028.1,1.84820574]
[1770995749031,0.002,2029.1,2028.1,1.84820574]
[1770995749232,0.002,2029.1,2027.5,4.9314528]
[1770995749233,1.5482196,2028.9,2027.0,1.23334977]
[1770995749521,1.196,2028.9,2027.3,1.84820574]
[1770995749732,1.196,2028.9,2027.5,1.84820574]
[1770995749891,0.002,2029.1,2027.5,1.84820574]
[1770995750088,0.002,2029.1,2027.6,4.94919054]
[1770995750293,0.002,2029.1,2027.7,1.84820574]
[1770995750791,0.002,2029.1,2027.8,0.889]
[1770995750994,0.002,2029.1,2027.9,1.84820574]
[1770995751188,0.002,2029.1,2028.1,1.84820574]
[1770995751388,0.0008,2030.0,2028.4,1.84820574]
[1770995751624,0.0008,2030.0,2028.6,1.84820574]
[1770995751846,0.0008,2030.0,2028.8,1.84820574]
[1770995752122,0.0008,2030.0,2028.9,3.08040052]
[1770995752326,8.795961,2029.9,2028.4,1.84820574]
[1770995752514,24.010625,2029.7,2027.9,3.08096304]
[1770995752825,0.1024,2029.6,2027.9,1.84820574]
[1770995752997,0.1024,2029.6,2027.5,2.47120574]
[1770995752998,18.161293,2029.2,2027.5,2.47120574]
[1770995753321,5.893115,2029.5,2027.6,1.84820574]
[1770995753539,9.024942,2029.9,2027.8,1.84820574]
[1770995753696,9.024942,2029.9,2028.0,1.84820574]
[1770995753697,3.632849,2029.9,2028.0,1.84820574]
[1770995753895,3.632849,2029.9,2028.2,1.84820574]
[1770995754306,8.156,2029.7,2028.4,1.84820574]
[1770995754501,1.23164843,2029.8,2028.4,1.84820574]
[1770995755328,17.986047,2029.7,2028.4,1.84820574]
[1770995755492,17.986047,2029.7,2028.2,4.93023714]
[1770995755493,10.036362,2029.7,2028.2,1.23257773]
[1770995755691,10.036362,2029.7,2028.1,6.79762415]
[1770995755692,10.036362,2029.7,2027.9,1.84820574]
[1770995755894,10.036362,2029.7,2028.0,1.867]
[1770995756233,1.2318305,2029.5,2028.0,4.94792834]
[1770995756410,17.952607,2029.4,2028.0,4.94792834]
[1770995756725,15.574788,2029.4,2028.0,4.94792834]
[1770995756921,7.506787,2029.4,2028.0,4.94792834]
[1770995757791,7.506787,2029.4,2028.0,3.71520574]
[1770995758126,7.506787,2029.4,2027.6,1.2329848]
[1770995758332,24.358614,2029.2,2028.0,0.978]
[1770995758540,18.498683,2029.2,2028.0,0.978]
[1770995758835,5.022156,2029.2,2028.0,0.978]
[1770995759128,1.194,2029.1,2027.8,0.889]
[1770995759336,8.034856,2029.0,2027.8,0.889]
[1770995759705,0.0008,2030.0,2028.5,1.84820574]
[1770995759896,1.2323367,2030.0,2029.4,8.034856]
[1770995760095,4.92520898,2030.4,2029.4,8.034856]
[1770995760096,4.92610837,2030.1,2029.4,8.034856]
[1770995760307,4.92610837,2030.3,2029.0,0.977]
[1770995760529,11.123579,2030.1,2029.1,8.034856]
[1770995760844,0.002,2029.2,2029.0,10.24398232]
[1770995761005,0.002,2029.2,2028.7,2.21027055]
[1770995761197,0.002,2029.2,2028.9,8.034856]
[1770995761401,0.888,2030.1,2029.2,8.034856]
[1770995761819,11.37367,2030.0,2028.9,8.034856]
[1770995761993,4.01929,2030.0,2028.9,8.034856]
[1770995762302,4.01929,2030.0,2029.1,8.034856]
[1770995762303,1.23158776,2029.9,2029.1,8.034856]
[1770995762504,21.120491,2029.8,2028.6,1.23233502]
[1770995762696,1.193,2029.7,2028.5,8.034856]
[1770995762896,5.287224,2029.6,2028.5,8.034856]
[1770995763118,5.287224,2029.6,2028.4,8.034856]
[1770995763327,5.287224,2029.6,2027.7,2.12192021]
[1770995763328,26.88974,2029.4,2027.7,2.12192021]
[1770995763528,4.652247,2029.2,2027.8,1.86576991]
[1770995764106,4.652247,2029.2,2027.7,0.001]
[1770995764107,9.66836452,2029.1,2027.7,0.001]
[1770995764302,8.951707,2028.8,2027.7,0.001]
[1770995764502,5.079579,2028.6,2027.7,0.001]
[1770995765124,5.079579,2028.6,2027.5,0.001]
[1770995765125,5.079579,2028.6,2026.9,2.12140952]
[1770995765325,5.079579,2028.6,2026.7,4.93398486]
[1770995765326,9.66836452,2028.2,2026.6,0.001]
[1770995765525,30.0,2027.9,2026.6,0.001]
[1770995765738,1.31034518,2028.4,2026.6,0.001]
[1770995765739,1.31034518,2028.5,2026.6,1.86676991]
[1770995765941,2.62069037,2028.8,2027.2,1.86576991]
[1770995765942,2.113901,2028.8,2027.2,1.86576991]
[1770995766115,0.888,2029.0,2027.4,1.86576991]
[1770995766317,4.861359,2029.6,2027.8,1.86576991]
[1770995766507,3.841737,2029.6,2028.0,1.86576991]
[1770995766713,2.712,2029.6,2028.2,1.86576991]
[1770995766908,3.31369268,2029.8,2028.2,1.86576991]
[1770995767503,6.46168,2029.7,2028.2,1.86576991]
[1770995767709,4.013,2029.7,2028.2,1.86576991]
[1770995768440,4.92523954,2030.4,2028.4,1.86576991]
[1770995768618,7.664435,2030.2,2028.6,1.86576991]
[1770995768819,5.492679,2030.2,2028.6,1.86576991]
[1770995769012,1.194,2030.3,2028.6,1.86576991]
[1770995769418,5.616322,2030.2,2028.6,1.86576991]
[1770995770417,1.23146643,2030.1,2028.8,1.86576991]
[1770995770849,25.920179,2030.0,2028.5,0.977]
[1770995771048,25.920179,2030.0,2028.1,0.888]
[1770995771049,0.65637344,2029.9,2028.1,2.12067271]
[1770995771220,27.09035252,2029.7,2028.1,0.888]
[1770995771422,15.413699,2029.5,2027.9,1.23276056]
[1770995771654,15.413699,2029.5,2027.8,1.86576991]
[1770995772027,11.439356,2029.1,2027.4,2.12110615]
[1770995772225,2.522116,2028.9,2027.4,2.12110615]
[1770995772416,1.2319519,2029.3,2027.7,1.86576991]
[1770995772617,1.194,2029.4,2027.9,1.86576991]
[1770995772848,1.194,2029.4,2028.1,1.86576991]
[1770995773049,1.194,2029.4,2028.3,1.86576991]
[1770995773633,2.42589551,2029.4,2028.3,1.86576991]
[1770995774037,2.42589551,2029.4,2027.9,0.001]
[1770995774038,8.136077,2029.0,2027.9,0.001]
[1770995774238,0.888,2028.9,2027.9,0.001]
[1770995774552,2.23295,2028.7,2027.9,0.001]
[1770995774850,2.42625552,2028.8,2027.1,3.09905266]
[1770995774851,5.593092,2028.6,2027.1,3.09905266]
[1770995775163,3.981708,2028.6,2027.2,1.86576991]
[1770995775314,6.649114,2028.4,2027.2,1.86576991]
[1770995775522,6.649114,2028.4,2027.1,1.23328275]
[1770995775812,2.745,2028.4,2027.1,1.23328275]
[1770995776213,2.745,2028.4,2026.7,3.98727108]
[1770995776446,7.375853,2028.2,2026.7,3.98727108]
[1770995776616,5.746926,2028.0,2026.8,1.86576991]
[1770995776822,1.193,2028.1,2026.8,1.86576991]
[1770995777022,21.203213,2028.0,2026.7,0.888]
[1770995777224,21.203213,2028.0,2026.7,1.23352633]
[1770995777225,12.323807,2028.0,2026.7,1.23352633]
[1770995777431,2.081,2027.9,2026.6,0.001]
[1770995777632,20.076696,2027.8,2026.6,0.001]
[1770995777961,25.118231,2027.7,2026.6,0.001]
[1770995778133,12.60151988,2027.7,2026.6,0.001]
[1770995778331,11.805087,2027.4,2026.6,0.001]
[1770995778668,4.93206859,2027.8,2026.6,0.001]
[1770995778669,1.23268083,2028.1,2026.6,1.86676991]
[1770995778872,1.195,2028.0,2026.6,1.86676991]
[1770995779026,1.23268083,2028.1,2026.6,1.86676991]
[1770995779368,1.195,2028.4,2027.0,1.86576991]
[1770995779732,22.849749,2028.3,2026.6,0.001]
[1770995779978,24.24639,2028.2,2026.6,0.001]
[1770995780274,23.720344,2028.2,2026.6,0.001]
[1770995780476,30.0,2028.0,2026.6,0.001]
[1770995780778,6.326702,2027.8,2026.6,0.001]
[1770995780978,30.0,2027.3,2025.9,0.001]
[1770995781278,26.889077,2027.1,2025.9,0.001]
[1770995781452,8.172889,2026.9,2025.9,0.001]
[1770995782042,1.31034518,2027.4,2025.9,1.23501824]
[1770995782248,1.74713982,2027.6,2025.9,1.23501824]
[1770995782249,10.234726,2027.2,2025.9,0.001]
[1770995782443,1.23328893,2027.1,2025.9,0.001]
[1770995782677,5.068368,2027.0,2025.9,0.001]
[1770995783182,5.068368,2027.0,2025.0,1.86576991]
[1770995783183,9.77076452,2026.9,2025.0,1.86576991]
[1770995783382,19.841807,2026.6,2024.9,1.23458992]
[1770995783712,10.55729,2026.4,2024.9,1.23458992]
[1770995783866,10.55729,2026.4,2024.8,0.001]
[1770995783867,30.0,2026.2,2024.8,0.001]
[1770995784067,0.889,2026.5,2024.8,0.001]
[1770995784068,2.088,2026.1,2024.8,0.001]
[1770995784280,12.540322,2026.0,2024.8,0.001]
[1770995784595,24.531175,2025.8,2024.8,0.001]
[1770995784946,20.893343,2025.8,2024.8,0.001]
[1770995785259,2.089,2025.7,2024.5,0.001]
[1770995785459,13.187816,2025.6,2024.5,0.001]
[1770995785782,13.187816,2025.6,2023.6,0.34861776]
[1770995785783,30.0,2025.1,2023.6,0.001]
[1770995785986,3.39934518,2025.7,2023.6,0.001]
[1770995785987,9.67636102,2025.8,2023.7,1.86576991]
[1770995786153,0.1024,2025.4,2023.7,1.86576991]
[1770995786347,1.201,2025.3,2023.7,1.86576991]
[1770995786555,23.879553,2025.1,2023.6,1.23641676]
[1770995786850,1.23444598,2025.2,2023.7,1.86576991]
[1770995787080,2.102601,2024.9,2023.7,1.86576991]
[1770995787488,2.102601,2024.9,2023.6,1.23641676]
[1770995787992,2.102601,2024.9,2023.9,0.001]
[1770995788584,3.32468984,2024.8,2023.9,0.001]
[1770995788889,2.521103,2024.7,2023.9,0.001]
[1770995789092,2.09,2024.6,2023.9,0.001]
[1770995789294,1.23468984,2024.8,2023.9,0.001]
[1770995789594,2.09,2024.7,2023.9,0.001]
[1770995789801,9.272168,2024.6,2023.9,0.001]
[1770995790492,1.2348728,2024.5,2023.9,0.001]
[1770995790696,2.091,2024.4,2023.9,0.001]
[1770995790991,2.092,2024.3,2023.9,0.001]
[1770995791218,2.092,2024.3,2023.6,0.001]
[1770995791602,2.092,2024.3,2022.7,1.23597172]
[1770995791603,15.324147,2024.2,2022.7,1.23597172]
[1770995791817,21.370093,2024.0,2022.6,1.78184958]
[1770995792100,3.441336,2023.8,2022.5,1.78184958]
[1770995792401,11.567879,2023.6,2022.5,1.78184958]
[1770995792699,5.88038,2023.4,2022.5,1.78184958]
[1770995792904,1.204,2023.3,2022.2,1.23627691]
[1770995793199,0.89,2023.3,2022.3,1.78184958]
[1770995793398,1.23548307,2023.5,2022.3,1.78184958]
[1770995793700,5.04288187,2024.1,2022.3,1.78184958]
[1770995793701,2.095,2023.4,2022.3,1.78184958]
[1770995793868,0.89,2023.4,2022.3,1.78184958]
[1770995794068,1.204,2023.3,2022.3,1.78184958]
[1770995794268,6.082214,2024.0,2022.3,1.78184958]
[1770995794506,19.57203788,2023.8,2022.3,3.01802457]
[1770995794669,14.98665,2023.6,2022.3,1.23617499]
[1770995795006,2.094,2023.5,2022.1,1.78184958]
[1770995795202,30.0,2023.4,2022.1,1.78184958]
[1770995795422,11.580991,2023.4,2022.1,1.78184958]
[1770995795911,4.405515,2023.4,2022.1,1.78184958]
[1770995796081,2.095,2023.3,2022.1,1.78184958]
[1770995796697,3.33065794,2023.3,2022.2,1.23627732]
[1770995796901,3.33065794,2023.3,2022.1,6.72695886]
[1770995796902,12.355489,2023.2,2021.9,1.23741526]
[1770995797180,10.766081,2023.2,2021.9,3.14608173]
[1770995797377,2.095,2023.1,2021.9,3.14608173]
[1770995797595,1.23565794,2023.3,2021.9,1.23741526]
[1770995797797,2.096,2023.2,2022.0,1.90866647]
[1770995798506,1.23554413,2023.4,2022.0,1.90866647]
[1770995798741,2.096,2023.4,2022.3,1.90866647]
[1770995798921,1.23554431,2023.4,2022.3,1.90866647]
[1770995799086,2.096,2023.3,2022.1,1.23629315]
[1770995799426,4.94217653,2023.5,2022.2,1.90866647]
[1770995799427,1.206,2023.2,2022.2,1.90866647]
[1770995799923,1.206,2023.2,2022.4,1.90866647]
[1770995800291,0.002,2023.3,2022.3,0.001]
[1770995800292,7.41449,2023.0,2022.3,0.001]
[1770995800599,7.41449,2023.0,2021.6,4.94655926]
[1770995800600,0.1024,2022.7,2020.9,1.90966647]
[1770995800784,1.33849394,2022.5,2021.2,0.001]
[1770995800980,8.582974,2022.3,2021.2,0.001]
[1770995801184,2.170752,2022.3,2021.2,1.90966647]
[1770995801386,1.23609394,2022.5,2021.2,1.90966647]
[1770995801387,2.096,2022.2,2021.2,1.90966647]
[1770995801615,2.501146,2022.4,2021.2,1.90966647]
[1770995801616,5.313646,2022.4,2021.2,1.90966647]
[1770995801909,7.99838,2022.2,2021.2,1.90966647]
[1770995802109,1.23609394,2022.5,2021.2,1.90966647]
[1770995802110,5.087014,2022.4,2021.2,1.90966647]
[1770995802324,1.206,2022.4,2021.2,1.90966647]
[1770995802751,1.206,2022.4,2021.4,1.90866647]
[1770995802906,2.44216294,2022.4,2021.4,1.90866647]
[1770995803108,1.23566627,2023.2,2021.4,1.90866647]
[1770995803443,4.336234,2023.1,2021.6,1.90866647]
[1770995803647,1.206,2023.1,2021.6,1.90866647]
[1770995804011,1.23761231,2023.3,2021.8,1.90866647]
[1770995804226,0.002,2023.3,2021.8,1.90866647]
[1770995804421,1.23760535,2023.3,2021.8,1.90866647]
[1770995804710,4.001208,2023.2,2021.9,3.14512722]
[1770995804910,9.291823,2023.2,2022.0,1.90866647]
[1770995805138,7.268081,2023.2,2022.0,1.90866647]
[1770995805441,2.377466,2023.2,2022.0,1.90866647]
[1770995806012,1.205,2023.1,2022.0,1.90866647]
[1770995806410,12.867511,2023.0,2021.5,4.11531071]
[1770995806609,12.867511,2023.0,2021.6,4.94641911]
[1770995806835,10.93686,2022.8,2021.6,4.94641911]
[1770995807041,10.149165,2022.8,2021.6,1.23664424]
[1770995807217,1.23584952,2022.9,2021.7,1.90866647]
[1770995807544,4.031204,2022.8,2021.7,1.90866647]
[1770995807743,3.725464,2022.8,2021.7,1.90866647]
[1770995807949,2.27196,2022.8,2021.7,1.90866647]
[1770995808332,2.27196,2022.8,2021.3,1.23682778]
[1770995808515,2.27196,2022.8,2021.4,1.90866647]
[1770995808714,1.23597172,2022.7,2021.5,1.23670541]
[1770995809032,1.206,2022.6,2021.2,0.001]
[1770995809233,16.731882,2022.3,2021.2,0.001]
[1770995809418,10.552536,2022.3,2021.2,0.001]
[1770995809615,18.434288,2022.1,2021.2,0.001]
[1770995809816,30.0,2021.9,2020.9,0.001]
[1770995810148,30.0,2021.9,2020.7,0.001]
[1770995810149,39.67636102,2021.9,2020.7,0.001]
[1770995810349,9.67636102,2021.4,2020.4,0.03400274]
[1770995810649,18.471346,2021.0,2019.5,1.23793018]
[1770995810846,2.099,2020.9,2019.6,1.90866647]
[1770995811047,2.099,2020.8,2019.6,1.90866647]
[1770995811263,14.032694,2020.7,2019.3,1.23800606]
[1770995811425,9.67636102,2020.6,2018.9,0.24275753]
[1770995811626,17.704867,2020.5,2018.9,1.48101241]
[1770995811815,17.704867,2020.5,2018.9,0.24275753]
[1770995812015,17.704867,2020.5,2018.9,1.48105082]
[1770995812324,1.209,2020.4,2018.9,0.24275753]
[1770995812512,25.265998,2020.3,2018.9,0.24275753]
[1770995812713,30.0,2020.7,2018.9,3.38969199]
[1770995813017,6.78399,2020.5,2019.0,1.90866647]
[1770995813420,5.529813,2020.5,2019.0,1.90866647]
[1770995813613,10.809285,2020.3,2019.0,1.90866647]
[1770995814022,10.809285,2020.3,2018.9,0.24275753]
[1770995814861,1.23750123,2020.2,2018.9,0.24275753]
[1770995815082,14.923152,2020.1,2018.9,0.24275753]
[1770995815237,5.930771,2020.1,2018.9,1.48104872]
[1770995815575,5.930771,2020.1,2018.9,0.24275753]
[1770995815871,5.308391,2020.1,2018.9,3.38971594]
[1770995816029,3.471225,2020.1,2019.0,1.90866647]
[1770995816229,1.211,2020.0,2018.9,0.24275753]
[1770995816548,4.220769,2019.9,2018.9,0.24275753]
[1770995816748,13.477199,2020.1,2018.9,0.24275753]
[1770995816936,8.079799,2019.9,2018.9,0.24275753]
[1770995817130,1.211,2019.8,2018.9,1.48104575]
[1770995817330,1.211,2019.7,2018.9,1.48104575]
[1770995817656,1.211,2019.8,2019.0,1.90866647]
[1770995818242,11.485529,2019.7,2018.9,0.24275753]
[1770995818443,1.211,2019.8,2018.9,0.24275753]
[1770995818629,4.462,2019.7,2018.9,0.24275753]
[1770995818854,1.237848,2019.7,2018.9,3.38971793]
[1770995819063,1.212,2019.6,2018.9,3.38971793]
[1770995819261,1.212,2019.6,2018.9,0.24275753]
[1770995819462,1.23762376,2020.0,2018.9,1.48103839]
[1770995819768,1.211,2019.9,2018.9,3.38970486]
[1770995820064,1.211,2019.9,2018.9,2.151424]
[1770995820265,28.06073,2019.6,2018.5,0.001]
[1770995820430,9.557191,2019.8,2018.5,0.001]
[1770995820631,7.547064,2019.8,2018.5,1.23952854]
[1770995820827,1.23786888,2019.6,2018.5,0.001]
[1770995821034,3.86185,2019.5,2018.5,1.82324373]
[1770995821294,1.212,2019.5,2018.5,1.82324373]
[1770995821469,5.502553,2019.4,2018.5,1.82324373]
[1770995821631,3.161355,2019.4,2018.5,1.82324373]
[1770995822062,3.161355,2019.4,2018.5,0.001]
[1770995822247,30.0,2019.2,2017.9,0.001]
[1770995822572,1.212,2019.5,2017.9,0.001]
[1770995822573,2.63583,2019.0,2018.0,1.82224373]
[1770995822862,1.213,2019.3,2018.0,1.82224373]
[1770995823060,1.213,2019.3,2018.2,1.82224373]
[1770995823243,2.45106353,2019.3,2018.2,1.82224373]
[1770995823429,1.213,2019.3,2018.2,1.82224373]
[1770995823635,4.95117721,2019.8,2018.2,1.82224373]
[1770995823636,15.43585773,2020.4,2018.3,1.82224373]
[1770995823858,11.027352,2020.2,2018.3,1.82224373]
[1770995824438,4.94951494,2020.8,2018.5,1.82224373]
[1770995824632,4.94951494,2020.8,2018.9,5.282749]
[1770995824633,0.892,2020.6,2018.9,5.282749]
[1770995824862,2.975,2021.4,2019.2,0.18685624]
[1770995824863,1.23676659,2021.4,2019.2,0.18685624]
[1770995825087,8.540878,2021.3,2019.5,1.82224373]
[1770995825240,2.4822,2021.2,2019.7,1.82224373]
[1770995825440,5.250978,2021.2,2019.7,1.82224373]
[1770995825639,1.213,2021.2,2019.7,1.82224373]
[1770995826248,11.739428,2021.1,2019.7,1.82224373]
[1770995826559,4.085731,2021.1,2019.7,1.82224373]
[1770995826759,1.213,2021.2,2019.7,1.82224373]
[1770995826965,1.23701138,2021.0,2019.8,1.23774631]
[1770995827150,1.23664424,2021.6,2019.9,1.82224373]
[1770995827350,10.254357,2021.4,2020.1,1.82224373]
[1770995827557,8.138304,2021.4,2020.1,1.82224373]
[1770995827869,4.112554,2021.5,2020.1,1.82224373]
[1770995829075,4.061065,2021.3,2020.3,1.82224373]
[1770995829370,1.23676659,2021.4,2020.3,1.82224373]
[1770995829575,0.002,2021.7,2020.4,1.82224373]
[1770995829775,2.44967009,2021.6,2020.4,1.82224373]
[1770995829950,17.797128,2021.5,2020.4,1.82224373]
[1770995830144,17.797128,2021.5,2020.0,0.892]
[1770995830145,13.494252,2021.5,2020.0,0.892]
[1770995830870,0.1024,2021.2,2019.4,1.82224373]
[1770995831071,1.23701138,2021.0,2019.4,1.82224373]
[1770995831259,18.668571,2020.9,2019.4,1.82224373]
[1770995831586,8.345305,2020.9,2019.5,1.82224373]
[1770995831743,4.845305,2020.8,2019.5,1.82224373]
[1770995831950,1.213,2020.9,2019.5,1.82224373]
[1770995832388,1.47704218,2022.0,2019.5,1.82224373]
[1770995832389,3.09279,2021.5,2019.5,1.82224373]
[1770995832593,1.213,2021.1,2019.5,1.82224373]
[1770995832763,1.213,2021.1,2019.7,1.82224373]
[1770995832962,1.23695017,2021.1,2019.9,1.82224373]
[1770995833272,13.050085,2021.0,2019.9,1.82224373]
[1770995833819,8.394307,2021.0,2019.9,1.82224373]
[1770995834093,6.751351,2021.0,2019.9,1.82224373]
[1770995834700,1.23695017,2021.1,2019.9,1.82224373]
[1770995834853,1.214,2021.0,2019.9,1.82224373]
[1770995835054,1.23707259,2020.9,2020.0,1.23762376]
[1770995835282,2.45104053,2021.0,2020.0,1.82224373]
[1770995835618,13.311107,2020.9,2019.5,1.82224373]
[1770995835757,13.311107,2020.9,2019.2,3.06032327]
[1770995835952,13.311107,2020.9,2019.2,1.82224373]
[1770995836450,2.249294,2020.7,2019.2,1.82224373]
[1770995836662,1.23704053,2021.0,2019.2,1.82224373]
[1770995836858,1.215,2020.7,2019.2,1.82224373]
[1770995837089,2.45220944,2020.7,2019.4,1.82224373]
[1770995837291,1.215,2020.7,2019.4,1.82224373]
[1770995837460,1.214,2020.8,2019.4,1.82224373]
[1770995837862,7.159392,2020.7,2019.4,1.82224373]
[1770995838070,1.214,2020.8,2019.4,1.82224373]
[1770995838383,19.740976,2020.6,2019.4,1.82224373]
[1770995838552,21.205676,2020.7,2019.4,1.82224373]
[1770995838753,1.214,2021.2,2019.4,1.82224373]
[1770995838953,3.107938,2021.6,2020.0,1.82224373]
[1770995839287,0.002,2021.7,2020.4,1.82224373]
[1770995839486,0.002,2021.3,2020.4,1.82224373]
[1770995840209,0.002,2021.7,2020.6,1.82224373]
[1770995840919,0.002,2021.7,2021.0,1.82224373]
[1770995841079,0.002,2021.7,2021.2,1.82224373]
[1770995843216,0.002,2021.9,2021.2,1.82224373]
[1770995843217,0.002,2021.9,2021.4,1.82224373]
[1770995843416,1.23610358,2022.5,2021.4,1.82224373]
[1770995843743,0.892,2022.7,2021.4,1.82224373]
[1770995843880,1.23791254,2022.8,2021.5,1.82224373]
[1770995844075,1.23791254,2022.8,2021.7,1.82224373]
[1770995844325,1.23791254,2022.8,2020.9,1.82224373]
[1770995844326,6.435346,2022.7,2020.9,1.82224373]
[1770995844621,2.482,2022.6,2021.0,1.82224373]
[1770995845004,2.102,2022.7,2021.2,1.82224373]
[1770995845184,1.23791126,2022.8,2021.5,1.82224373]
[1770995845501,1.23791126,2022.8,2021.6,2.78824373]
[1770995845880,13.30786,2022.7,2021.1,1.82224373]
[1770995846111,4.607087,2022.6,2021.2,1.82224373]
[1770995846899,2.4619,2022.6,2021.2,1.82224373]
[1770995847228,5.32493582,2022.6,2021.3,1.82224373]
[1770995847528,7.732364,2022.4,2021.3,1.82224373]
[1770995847722,7.732364,2022.4,2020.8,1.82224373]
[1770995847941,7.732364,2022.4,2020.5,1.23726258]
[1770995848091,7.732364,2022.4,2020.4,2.1293387]
[1770995848299,9.70007164,2022.0,2020.4,0.892]
[1770995848491,22.130861,2021.8,2020.2,0.965]
[1770995848691,9.895218,2021.8,2019.9,3.05990747]
[1770995848922,17.432217,2021.6,2019.9,3.05990747]
[1770995849112,30.0,2021.8,2019.9,3.05990747]
[1770995849327,14.297638,2021.6,2020.0,1.82224373]
[1770995849912,12.390562,2021.6,2020.0,1.82224373]
[1770995850105,10.85736162,2021.5,2019.6,1.82224373]
[1770995850403,1.35379356,2020.9,2018.7,0.001]
[1770995850626,2.26588998,2021.4,2018.7,0.001]
[1770995850627,7.073479,2020.0,2018.7,0.001]
[1770995850794,1.30952914,2020.5,2018.7,2.83101458]
[1770995850992,10.842002,2020.3,2018.8,1.59160877]
[1770995851295,10.842002,2020.3,2019.0,1.59160877]
[1770995851296,2.44950123,2020.2,2019.0,1.59160877]
[1770995851722,2.44950123,2020.2,2018.7,1.23941225]
[1770995851723,8.18138,2020.1,2018.7,1.23941225]
[1770995852099,8.18138,2020.1,2018.7,1.23942006]
[1770995852306,2.44950123,2020.2,2018.9,1.59160877]
[1770995852307,1.23750123,2020.2,2018.9,1.59160877]
[1770995852509,1.23750123,2020.2,2019.5,0.001]
[1770995853421,4.94978474,2020.3,2019.5,0.001]
[1770995853839,19.191337,2020.2,2019.5,0.001]
[1770995853995,18.235315,2020.2,2019.5,0.001]
[1770995854197,18.235315,2020.2,2018.8,3.79395974]
[1770995854494,4.94978474,2020.3,2018.9,1.59160877]
[1770995854925,2.50422,2020.2,2018.9,1.59160877]
[1770995855335,1.23756249,2020.1,2018.8,0.964]
[1770995855640,8.248487,2019.9,2018.7,0.001]
[1770995855820,3.44015,2019.9,2018.7,0.001]
[1770995856015,9.25113,2020.0,2018.8,1.59160877]
[1770995856221,1.215,2019.9,2018.8,1.59160877]
[1770995856609,2.12956249,2020.1,2018.8,1.59160877]
[1770995856610,1.23756249,2020.1,2018.8,1.59160877]